Workbook

Sheet CC2-Budget
A1: Table 1: Cow-Calf Budget, 300 Cow - 2021 | N1: CCB-CC2-21
A2: Summer on Private Pasture & Federal Range, Winter Feeding Necessary | K2: No. of Cows: | L2: 300
G4: Total Number
C5: Weight | G5: of Head | I5: Price or | K5: Total | L5: Value or
C6: Each | E6: Unit | G6: or Units | I6: Cost/Unit | K6: Value | L6: Cost/Head | N6: Your Value
B7: GROSS RETURNS | Q7: NOTES
B8: Steer Calves | C8: 550 | E8: lbs | G8: 138 | I8: 1.67 | K8: =C8*G8*I8 -> 126753 | L8: =K8/$L$2 -> 422.51 | Q8: 300 | R8: Cows
B9: Heifer Calves | C9: 525 | E9: lbs | G9: 84 | I9: 1.62 | K9: =C9*G9*I9 -> 71442 | L9: =K9/$L$2 -> 238.14 | Q9: 12 | R9: Bulls
B10: Cull Cows | C10: 1100 | E10: lbs | G10: 42 | I10: 0.67 | K10: =C10*G10*I10 -> 30954 | L10: =K10/$L$2 -> 103.18 | Q10: 6 | R10: Horses
B11: Cull Bulls | C11: 1650 | E11: lbs | G11: 3 | I11: 0.88 | K11: =C11*G11*I11 -> 4356 | L11: =K11/$L$2 -> 14.52 | Q11: 0.14 | R11: Cow culling rate
B12: Cull Replacement Heifers | C12: 900 | E12: lbs | G12: 6 | I12: 1.12 | K12: =C12*G12*I12 -> 6048 | L12: =K12/$L$2 -> 20.16 | Q12: 0.02 | R12: Cow death loss
B13: TOTAL GROSS RETURNS | K13: =SUM(K8:K12) -> 239553 | L13: =SUM(L8:L12) -> 798.51 | Q13: 0.92 | R13: Calf crop
Q14: 0.11 | R14: Heifer culling rate
B15: OPERATING COSTS
B16: Alfalfa/Grass Hay | E16: ton | G16: 379 | I16: 180 | K16: =G16*I16 -> 68220 | L16: =K16/$L$2 -> 227.4
B17: Meadow Hay | E17: ton | G17: 281 | I17: 145 | K17: =G17*I17 -> 40745 | L17: =K17/$L$2 -> 135.8166667
B18: Feed Barley | E18: cwt | G18: 150 | I18: 30.38 | K18: =G18*I18 -> 4557 | L18: 15.19
B19: Federal Range | E19: AUM | G19: 1121 | I19: 1.35 | K19: =G19*I19 -> 1513.35 | L19: =K19/$L$2 -> 5.0445
B20: Meadow Pasture | E20: AUM | G20: 713 | I20: 26 | K20: 18538 | L20: 61.79333333
B21: Crop Aftermath | E21: AUM | G21: 484 | I21: 19.5 | K21: 9438 | L21: 31.46
B22: Salt/Mineral | E22: cwt | G22: 156 | I22: 34 | K22: 5304 | L22: 17.68
B23: Veterinary/Medicine | E23: $ | G23: 1 | I23: =Vet!V32 -> 8331.054953 | K23: =G23*I23 -> 8331.054953 | L23: 27.77018318
B24: Freight/Trucking | E24: head | G24: =SUM(G10:G12) -> 51 | I24: 10 | K24: 510 | L24: 1.7
B25: Commission | E25: head | G25: =SUM(G10:G12) -> 51 | I25: =(K10+K11+K12)*0.025/(G10+G11+G12) -> 20.27352941 | K25: =G25*I25 -> 1033.95 | L25: =K25/$L$2 -> 3.4465
B26: Checkoff/Brand Inspection | E26: head | G26: =SUM(G8:G12) -> 273 | I26: 2.96 | K26: =G26*I26 -> 808.08 | L26: =K26/$L$2 -> 2.6936
B27: Hired Labor | E27: hour | G27: 2180 | I27: 18.19 | K27: 39654.2 | L27: 132.1806667
B28: Owner Labor | E28: hour | G28: 1000 | I28: 31.12 | K28: 31120 | L28: 103.7333333
B29: Machinery (Fuel, Oil, Repair) | E29: $ | G29: 1 | I29: =3050*(1+42.89%) -> 4358.145 | K29: =G29*I29 -> 4358.145 | L29: =K29/$L$2 -> 14.52715
B30: Vehicles (Fuel, Repair) | E30: $ | G30: 1 | I30: =7000*(1+43.23%) -> 10026.1 | K30: =G30*I30 -> 10026.1 | L30: =K30/$L$2 -> 33.42033333
B31: Equipment (Repair) | E31: $ | G31: 1 | I31: =850*(1+6.37%) -> 904.145 | K31: =G31*I31 -> 904.145 | L31: =K31/$L$2 -> 3.013816667
B32: Buildings & Improvements (Repair) | E32: $ | G32: 1 | I32: =950*(1+6.37%) -> 1010.515 | K32: 1010.515 | L32: 3.368383333
B33: Interest on Operating Capital | E33: $ | G33: =SUM(K16:K32)*0.25 -> 61517.88499 | I33: 0.05 | K33: 3075.894249 | L33: 10.25298083
B34: TOTAL OPERATING COSTS | K34: =SUM(K16:K33) -> 249147.4342 | L34: 830.4914473
B36: NET RETURNS ABOVE OPERATING COSTS | K36: =K13-K34 -> -9594.434203 | L36: =K36/$L$2 -> -31.98144734
B38: OWNERSHIP COSTS
B39: Capital Recovery:
B40: Purchased Livestock | E40: $ | G40: 1 | I40: =Investment!H22 -> 10104.432 | K40: =G40*I40 -> 10104.432 | L40: =K40/$L$2 -> 33.68144
B41: Housing & Improvements | E41: $ | G41: 1 | I41: =Investment!H15-Investment!H13-Investment!H12-Investment!H11-Investment!H10-Investment!H9 -> 3257 | K41: =G41*I41 -> 3257 | L41: =K41/$L$2 -> 10.85666667
B42: Machinery | E42: $ | G42: 1 | I42: =Investment!H33 -> 2709 | K42: 2709 | L42: =K42/$L$2 -> 9.03
B43: Equipment | E43: $ | G43: 1 | I43: =Investment!H9+Investment!H10+Investment!H11+Investment!H12+Investment!H13 -> 1572.5 | K43: 1572.5 | L43: 5.241666667
B44: Vehicles | E44: $ | G44: 1 | I44: =Investment!H34+Investment!H35+Investment!H36 -> 3335 | K44: 3335 | L44: 11.11666667
B45: Interest on Retained Livestock | E45: $ | G45: =Investment!C29 -> 514800 | I45: 0.0506 | K45: 26048.88 | L45: 86.8296
B46: Taxes & Insurance | E46: $ | G46: 1 | I46: =Investment!G38+Investment!G15 -> 845.85 | K46: 845.85 | L46: 2.8195
B47: General Overhead | E47: $ | G47: 1 | I47: 5000 | K47: 5000 | L47: 16.66666667
B48: TOTAL OWNERSHIP COSTS | K48: =SUM(K40:K47) -> 52872.662 | L48: 176.2422067
B50: TOTAL COSTS | K50: =+K34+K48 -> 302020.0962 | L50: =K50/$L$2 -> 1006.733654
B52: NET RETURNS ABOVE TOTAL COSTS | K52: =+K13-K50 -> -62467.0962 | L52: =K52/$L$2 -> -208.223654

Sheet Monthly Flows
A1: Table 2: Monthly Summary of Returns and Expenses. | O1: CCB-CC2-21
C2: Jan | D2: Feb | E2: Mar | F2: Apr | G2: May | H2: Jun | I2: Jul | J2: Aug | K2: Sep | L2: Oct | M2: Nov | N2: Dec | O2: Value
A4: Production:
B5: Steer Calves | M5: =O5 -> 126753 | O5: ='CC2-Budget'!K8 -> 126753
B6: Heifer Calves | M6: =O6 -> 71442 | O6: ='CC2-Budget'!K9 -> 71442
B7: Cull Cows | G7: =0.25*O7 -> 7738.5 | M7: =0.75*O7 -> 23215.5 | O7: ='CC2-Budget'!K10 -> 30954
B8: Cull Bulls | M8: =O8 -> 4356 | O8: ='CC2-Budget'!K11 -> 4356
B9: Cull Replacement Heifers | M9: =O9 -> 6048 | O9: ='CC2-Budget'!K12 -> 6048
A11: Total Receipts | C11: =SUM(C5:C9) -> 0 | D11: =SUM(D5:D9) -> 0 | E11: 0 | F11: 0 | G11: 7738.5 | H11: 0 | I11: 0 | J11: 0 | K11: 0 | L11: 0 | M11: 231814.5 | N11: 0 | O11: ='CC2-Budget'!K13 -> 239553
A14: Operating Inputs:
B15: ='CC2-Budget'!B16:C16 -> Alfalfa/Grass Hay | C15: =$O$15/5 -> 13644 | D15: =$O$15/5 -> 13644 | E15: =$O$15/5 -> 13644 | F15: 13644 | N15: 13644 | O15: ='CC2-Budget'!K16 -> 68220
B16: ='CC2-Budget'!B17:C17 -> Meadow Hay | C16: =$O$16/5 -> 8149 | D16: =$O$16/5 -> 8149 | E16: =$O$16/5 -> 8149 | F16: 8149 | N16: 8149 | O16: ='CC2-Budget'!K17 -> 40745
B17: ='CC2-Budget'!B18:C18 -> Feed Barley | C17: =$O$17/5 -> 911.4 | D17: =$O$17/5 -> 911.4 | E17: =$O$17/5 -> 911.4 | F17: 911.4 | N17: 911.4 | O17: ='CC2-Budget'!K18 -> 4557
B18: ='CC2-Budget'!B19:C19 -> Federal Range | G18: =$O$18/5 -> 302.67 | H18: =$O$18/5 -> 302.67 | I18: 302.67 | J18: 302.67 | K18: 302.67 | O18: ='CC2-Budget'!K19 -> 1513.35
B19: ='CC2-Budget'!B20:C20 -> Meadow Pasture | G19: =$O$19/5 -> 3707.6 | H19: =$O$19/5 -> 3707.6 | I19: 3707.6 | J19: 3707.6 | K19: 3707.6 | O19: ='CC2-Budget'!K20 -> 18538
B20: ='CC2-Budget'!B21:C21 -> Crop Aftermath | M20: =$O$20/2 -> 4719 | N20: =$O$20/2 -> 4719 | O20: ='CC2-Budget'!K21 -> 9438
B21: ='CC2-Budget'!B22:C22 -> Salt/Mineral | D21: =$O$21/12 -> 442 | E21: =$O$21/12 -> 442 | F21: 442 | G21: 442 | H21: 442 | I21: 442 | J21: 442 | K21: 442 | L21: 442 | M21: 442 | N21: 442 | O21: ='CC2-Budget'!K22 -> 5304
B22: ='CC2-Budget'!B23:C23 -> Veterinary/Medicine | D22: =0.05*O22 -> 416.5527477 | F22: =0.45*O22 -> 3748.974729 | H22: =0.1*O22 -> 833.1054953 | K22: =0.1*O22 -> 833.1054953 | L22: =0.3*O22 -> 2499.316486 | O22: ='CC2-Budget'!K23 -> 8331.054953
B23: ='CC2-Budget'!B24:C24 -> Freight/Trucking | G23: =0.25*O23 -> 127.5 | M23: =0.75*O23 -> 382.5 | O23: ='CC2-Budget'!K24 -> 510
B24: ='CC2-Budget'!B25:C25 -> Commission | G24: =0.25*O24 -> 258.4875 | M24: =O24*0.75 -> 775.4625 | O24: ='CC2-Budget'!K25 -> 1033.95
B25: ='CC2-Budget'!B26:C26 -> Checkoff/Brand Inspection | G25: =0.25*O25 -> 202.02 | M25: =O25*0.75 -> 606.06 | O25: ='CC2-Budget'!K26 -> 808.08
B26: ='CC2-Budget'!B27:C27 -> Hired Labor | C26: =0.08*O26 -> 3172.336 | D26: =0.17*O26 -> 6741.214 | E26: =0.17*O26 -> 6741.214 | F26: =0.08*O26 -> 3172.336 | G26: =0.08*O26 -> 3172.336 | H26: =0.0225*$O$26 -> 892.2195 | I26: =0.0225*$O$26 -> 892.2195 | J26: =0.0225*$O$26 -> 892.2195 | K26: =0.0225*$O$26 -> 892.2195 | L26: =0.17*O26 -> 6741.214 | M26: =0.08*O26 -> 3172.336 | N26: =0.08*O26 -> 3172.336 | O26: ='CC2-Budget'!K27 -> 39654.2
B27: ='CC2-Budget'!B28:C28 -> Owner Labor | C27: =$O$27/12 -> 2593.333333 | D27: =$O$27/12 -> 2593.333333 | E27: 2593.333333 | F27: 2593.333333 | G27: 2593.333333 | H27: 2593.333333 | I27: 2593.333333 | J27: 2593.333333 | K27: 2593.333333 | L27: 2593.333333 | M27: 2593.333333 | N27: 2593.333333 | O27: ='CC2-Budget'!K28 -> 31120
B28: ='CC2-Budget'!B29:C29 -> Machinery (Fuel, Oil, Repair) | C28: =$O$28/12 -> 363.17875 | D28: 363.17875 | E28: 363.17875 | F28: 363.17875 | G28: 363.17875 | H28: 363.17875 | I28: 363.17875 | J28: 363.17875 | K28: 363.17875 | L28: 363.17875 | M28: 363.17875 | N28: 363.17875 | O28: ='CC2-Budget'!K29 -> 4358.145
B29: ='CC2-Budget'!B30:C30 -> Vehicles (Fuel, Repair) | C29: =$O$29/12 -> 835.5083333 | D29: 835.5083333 | E29: 835.5083333 | F29: 835.5083333 | G29: 835.5083333 | H29: 835.5083333 | I29: 835.5083333 | J29: 835.5083333 | K29: 835.5083333 | L29: 835.5083333 | M29: 835.5083333 | N29: 835.5083333 | O29: ='CC2-Budget'!K30 -> 10026.1
B30: ='CC2-Budget'!B31:C31 -> Equipment (Repair) | C30: =$O$30/12 -> 75.34541667 | D30: =$O$30/12 -> 75.34541667 | E30: =$O$30/12 -> 75.34541667 | F30: 75.34541667 | G30: 75.34541667 | H30: 75.34541667 | I30: 75.34541667 | J30: 75.34541667 | K30: 75.34541667 | L30: 75.34541667 | M30: 75.34541667 | N30: 75.34541667 | O30: ='CC2-Budget'!K31 -> 904.145
B31: ='CC2-Budget'!B32:C32 -> Buildings & Improvements (Repair) | C31: =$O$31/12 -> 84.20958333 | D31: =$O$31/12 -> 84.20958333 | E31: 84.20958333 | F31: 84.20958333 | G31: 84.20958333 | H31: 84.20958333 | I31: 84.20958333 | J31: 84.20958333 | K31: 84.20958333 | L31: 84.20958333 | M31: 84.20958333 | N31: 84.20958333 | O31: ='CC2-Budget'!K32 -> 1010.515
B32: ='CC2-Budget'!B33:C33 -> Interest on Operating Capital | N32: =O32 -> 3075.894249 | O32: ='CC2-Budget'!K33 -> 3075.894249
A34: Total Costs | C34: =SUM(C15:C32) -> 29828.31142 | D34: 34255.74216 | E34: 33839.18942 | F34: 34019.28615 | G34: 12164.18892 | H34: 10129.17041 | I34: 9296.064917 | J34: 9296.064917 | K34: 10129.17041 | L34: 13634.1059 | M34: 14048.93392 | N34: 38065.20567 | O34: 249147.4342
A37: Net Returns | C37: =C11-C34 -> -29828.31142 | D37: -34255.74216 | E37: -33839.18942 | F37: -34019.28615 | G37: -4425.688917 | H37: -10129.17041 | I37: -9296.064917 | J37: -9296.064917 | K37: -10129.17041 | L37: -13634.1059 | M37: 217765.5661 | N37: -38065.20567 | O37: -9594.434203
A44: Table 3: Monthly Feed Requirements.
A45: Feed | C45: Units | D45: Jan | E45: Feb | F45: Mar | G45: Apr | H45: May | I45: Jun | J45: Jul | K45: Aug | L45: Sep | M45: Oct | N45: Nov | O45: Dec
A47: Feed Barley
B48: Replacement Heifers | C48: cwt | D48: 30 | E48: 30 | F48: 30 | G48: 30 | O48: 30
A49: Alfalfa/Grass Hay
B50: Cows | C50: ton | D50: 56 | E50: 56 | F50: 56 | G50: 56 | O50: 56
B51: Replacement Heifers | C51: ton | D51: 11 | E51: 11 | F51: 11 | G51: 11 | O51: 11
B52: Bulls | C52: ton | D52: 7 | E52: 7 | F52: 7 | G52: 7 | O52: 7
B53: Horses | C53: ton | D53: 2 | E53: 2 | F53: 2 | G53: 2 | O53: 2
A54: Meadow Hay
B55: Cows | C55: ton | D55: 56 | E55: 56 | F55: 56 | G55: 56 | O55: 56
A56: Federal Range
B57: Cows | C57: AUM | H57: 183 | I57: 183 | J57: 183 | K57: 183 | L57: 183
B58: Replacement Heifers | C58: AUM | H58: 26 | I58: 26 | J58: 26 | K58: 26 | L58: 26
B59: Bulls | C59: AUM | H59: 11 | I59: 11 | J59: 11 | K59: 11 | L59: 11
B60: Horses | C60: AUM | H60: 4 | I60: 4 | J60: 4 | K60: 4 | L60: 4
A61: Meadow Pasture
B62: Cows | C62: AUM | H62: 116 | I62: 116 | J62: 116 | K62: 116 | L62: 116
B63: Replacement Heifers | C63: AUM | H63: 17 | I63: 17 | J63: 17 | K63: 17 | L63: 17
B64: Bulls | C64: AUM | H64: 7 | I64: 7 | J64: 7 | K64: 7 | L64: 7
B65: Horses | C65: AUM | H65: 2 | I65: 2 | J65: 2 | K65: 2 | L65: 2
A66: Crop Aftermath | C66: AUM | M66: 242 | N66: 242
A67: Salt/Mineral | C67: cwt | D67: 13 | E67: 13 | F67: 13 | G67: 13 | H67: 13 | I67: 13 | J67: 13 | K67: 13 | L67: 13 | M67: 13 | N67: 13 | O67: 13
B71: Daily Feed Requirements by Livestock Category (lb fed/head/day)
B72: Livestock Category | C72: Alfalfa or Grass Hay (lb) | E72: Feed Barley (lb) | F72: No. of Days
B75: Replacement Heifers | E75: 1.8 | F75: 150
B76: Replacement Heifers | C76: 13 | F76: 150
B77: Cows | C77: 25 | F77: 150
B78: Bulls | C78: 28 | F78: 150
B79: Horses | C79: 20 | F79: 150

Sheet Investment
A1: Table 4: Investment Summary. | H1: CCB-CC2-21
C2: Total Value | D2: Salvage/Cull Value | E2: Livestock Share | F2: Useful Life | G2: Annual Taxes & Insurance | H2: Annual Capital Recovery | I2: 1
A4: Buildings, Improvements | J4: Interest/Discount Rate
A5: and Equipment | J5: 0.0506
B6: Fencing | C6: 24000 | D6: 0 | E6: 100 | F6: 25 | G6: =C6*0.0036 -> 86.4 | H6: =(C6-D6)*0.071 -> 1704
B7: Working Corrals & Pens | C7: 10000 | D7: 3000 | E7: 100 | F7: 30 | G7: =C7*0.0036 -> 36 | H7: =(C7-D7)*0.064 -> 448
B8: Barn | C8: 20000 | D8: 3000 | E8: 100 | F8: 30 | G8: =C8*0.0036 -> 72 | H8: =(C8-D8)*0.065 -> 1105
B9: Calf Table | C9: 1500 | D9: 500 | E9: 100 | F9: 10 | G9: =C9*0.0035 -> 5.25 | H9: =(C9-D9)*0.13 -> 130
B10: Squeeze Chute | C10: 3500 | D10: 1000 | E10: 100 | F10: 10 | G10: =C10*0.0036 -> 12.6 | H10: =(C10-D10)*0.13 -> 325
B11: Vet Equipment | C11: 1500 | D11: 0 | E11: 100 | F11: 15 | G11: =C11*0.0036 -> 5.4 | H11: =(C11-D11)*0.097 -> 145.5
B12: Stock Trailer | C12: 5000 | D12: 1000 | E12: 100 | F12: 20 | G12: =C12*0.0036 -> 18 | H12: =(C12-D12)*0.081 -> 324
B13: Gooseneck Trailer | C13: 12000 | D13: 4000 | E13: 100 | F13: 20 | G13: =C13*0.0036 -> 43.2 | H13: =(C13-D13)*0.081 -> 648
A15: Total | C15: =SUM(C6:C13) -> 77500 | G15: =SUM(G6:G13) -> 278.85 | H15: =SUM(H6:H13) -> 4829.5
A18: Purchased Livestock
B19: Horses | C19: 15000 | D19: 3600 | E19: 100 | F19: 10 | H19: =(C19-D19)*0.13 -> 1482
B20: Bulls | C20: 48000 | D20: ='CC2-Budget'!Q9*'CC2-Budget'!C11*'CC2-Budget'!I11 -> 17424 | E20: 100 | F20: 4 | H20: =(C20-D20)*0.282 -> 8622.432
A22: Total | C22: =SUM(C19:C20) -> 63000 | H22: =SUM(H19:H20) -> 10104.432
A25: Retained Livestock
B26: Beef Replacement Heifers | C26: =1200*54 -> 64800 | D26: =1035*54 -> 55890 | E26: 100 | H26: =C26*$J$5 -> 3278.88 | I26: 2
B27: Beef Cows | C27: =300*1500 -> 450000 | D27: =300*770 -> 231000 | E27: 100 | H27: =C27*$J$5 -> 22770 | I27: 2
A29: Total | C29: =SUM(C26:C27) -> 514800 | H29: =SUM(H26:H27) -> 26048.88
A32: Machinery and Vehicles
B33: Tractor Loader | C33: 40000 | D33: 8500 | E33: 100 | F33: 18 | G33: =C33*0.0036 -> 144 | H33: =(C33-D33)*0.086 -> 2709
B34: Pickup 4X4 3/4 ton | C34: 20000 | D34: 5000 | E34: 100 | F34: 10 | G34: =C34*0.0094 -> 188
B35: Pickup 4X4 1 ton | C35: 25000 | D35: 6000 | E35: 100 | F35: 8 | G35: =C35*0.0094 -> 235 | H35: =(C35-D35)*0.155 -> 2945
B36: ATV | C36: 4000 | D36: 1000 | E36: 100 | F36: 10 | G36: =C36*0.0094 -> 37.6 | H36: =(C36-D36)*0.13 -> 390
A38: Total | C38: =SUM(C33:C36) -> 89000 | G38: =SUM(G33:G35) -> 567 | H38: =SUM(H33:H36) -> 6044
A41: 1 | B41: Annual capital recovery is the method of calculating depreciation and interest recommended by the National Task Force
B42: on Commodity Costs and Returns Measurement Methods.
A43: 2 | B43: Interest on average investment.

Sheet Vet
C1: Veterinary Expenses
J3: Monthly Allocation
A4: Vaccine | D4: Number of Head | E4: Dosage | F4: Price | H4: Units | I4: $/Unit | J4: Jan | K4: Feb | L4: Mar | M4: Apr | N4: May | O4: Jun | P4: Jul | Q4: Aug | R4: Sep | S4: Oct | T4: Nov | U4: Dec | V4: Total
C5: Steer Calves | D5: 138
A6: Inforce 3 | C6: Respiratory Viral | E6: 50 | F6: 77.49 | H6: dose | I6: =F6/E6 -> 1.5498 | L6: 1 | T6: 1 | V6: =SUM(J6:U6)*$D$5*I6 -> 427.7448
A7: Ultrabac 8 | C7: 8 Way | E7: 50 | F7: 42.29 | H7: dose | I7: =F7/E7 -> 0.8458 | L7: 1 | T7: 1 | V7: =SUM(J7:U7)*$D$5*I7 -> 233.4408
C8: Heifer Calves | D8: 138
A9: Inforce 3 | C9: Respiratory Viral | E9: 50 | F9: 77.49 | H9: dose | I9: 1.5498 | L9: 1 | T9: 1 | V9: =SUM(J9:U9)*$D$8*I9 -> 427.7448
A10: Ultrabac 8 | C10: 8 Way | E10: 50 | F10: 42.29 | H10: dose | I10: 0.8458 | L10: 1 | T10: 1 | V10: =SUM(J10:U10)*$D$8*I10 -> 233.4408
C11: Bangs | H11: dose | I11: 4 | T11: 1 | V11: =SUM(J11:U11)*$D$8*I11 -> 552
C12: Cows | D12: 300
A13: Pyramid 5 | C13: Respiratory Viral | E13: 50 | F13: 65.29 | H13: dose | I13: 1.3058 | L13: 1 | V13: =SUM(J13:U13)*$D$12*I13 -> 391.74
A14: Vira Shield 6 + VL5 | C14: Pregnancy Viral | E14: 50 | F14: 127.29 | H14: dose | I14: 2.5458 | L14: 1 | V14: =SUM(J14:U14)*$D$12*I14 -> 763.74
A15: Clean-Up 2 | C15: Pour-On | E15: 384 | F15: 432.5 | H15: dose | I15: 1.126302083 | L15: 1 | V15: =SUM(J15:U15)*$D$12*I15 -> 337.890625
A16: PYthon2 | C16: Fly Tags | E16: 100 | F16: 197.39 | H16: head | I16: 1.9739 | L16: 1 | V16: =SUM(J16:U16)*$D$12*I16 -> 592.17
C17: Preg. Check | H17: head | I17: 4 | T17: 1 | V17: =SUM(J17:U17)*$D$12*I17 -> 1200
C18: Replacement Heifers | D18: 54
A19: Pyramid 5 | C19: Respiratory Viral | E19: 50 | F19: 65.29 | H19: dose | I19: 1.3058 | M19: 1 | T19: 1 | V19: =SUM(J19:U19)*$D$18*I19 -> 141.0264
A20: Vira Shield 6 + VL5 | C20: Pregnancy Viral | E20: 50 | F20: 127.29 | H20: dose | I20: 2.5458 | M20: 1 | V20: =SUM(J20:U20)*$D$18*I20 -> 137.4732
A21: Clean-Up 2 | C21: Pour-On | E21: 384 | F21: 432.5 | H21: dose | I21: 1.126302083 | T21: 1 | V21: =SUM(J21:U21)*$D$18*I21 -> 60.8203125
A22: Python 2 | C22: Fly Tags | E22: 100 | F22: 197.39 | H22: head | I22: 1.9739 | M22: 1 | V22: =SUM(J22:U22)*$D$18*I22 -> 106.5906
C23: Preg. Check | H23: head | I23: 4 | T23: 1 | V23: =SUM(J23:U23)*$D$18*I23 -> 216
C24: Bulls | D24: 12
A25: Pyramid 5 | C25: Respiratory Viral | E25: 50 | F25: 65.29 | H25: dose | I25: 1.3058 | M25: 1 | V25: =SUM(J25:U25)*$D$24*I25 -> 15.6696
A26: Ultrabac 8 | C26: 8 Way | E26: 50 | F26: 42.29 | H26: dose | I26: 0.8458 | T26: 1 | V26: =SUM(J26:U26)*$D$24*I26 -> 10.1496
A27: Clean-Up 2 | C27: Pour-On | E27: 384 | F27: 432.5 | H27: dose | I27: 1.126302083 | M27: 1 | V27: =SUM(J27:U27)*$D$24*I27 -> 13.515625
C28: Semen/Trich Test | H28: head | I28: 65 | M28: 1 | V28: =SUM(J28:U28)*$D$24*I28 -> 780
A29: Python 2 | C29: Fly Tags | E29: 100 | F29: 197.39 | H29: head | I29: 1.9739 | M29: 1 | V29: =SUM(J29:U29)*$D$24*I29 -> 23.6868
U30: Total | V30: =SUM(V6:V29) -> 6664.843963
V32: =V30*1.25 -> 8331.054953
